bitfinex/quotes_SOLUSD_20250817
["timestamp","ask_amount","ask_price","bid_price","bid_amount"]
[1755438206691,0.06,192.91,192.9,118.47614566]
[1755438207579,0.7,192.93,192.92,5.18349574]
[1755438207780,0.7,192.93,192.92,114.92696523]
[1755438211468,0.76,192.95,192.94,26.0]
[1755438211673,0.06,192.95,192.94,64.59729352]
[1755438212297,0.76,192.95,192.94,64.59729352]
[1755438212490,4.63553004,192.95,192.94,64.59729352]
[1755438213398,4.63569292,192.95,192.94,140.92642792]
[1755438216090,0.76,192.95,192.94,140.92642792]
[1755438216679,0.76,192.95,192.94,104.86642792]
[1755438216881,0.76,192.95,192.94,135.74346949]
[1755438217109,0.76,192.95,192.94,133.20617597]
[1755438217781,0.06,192.95,192.94,140.92642792]
[1755438218402,0.76,192.95,192.94,140.92642792]
[1755438219382,0.76,192.95,192.94,138.3891344]
[1755438219784,0.76,192.95,192.94,140.92642792]
[1755438220303,0.06,192.95,192.94,140.92642792]
[1755438220692,0.06,192.95,192.94,141.64642792]
[1755438223600,0.06,192.95,192.94,139.1091344]
[1755438223798,0.06,192.95,192.94,141.64642792]
[1755438224317,0.06,192.95,192.94,145.13450192]
[1755438226616,0.06,192.95,192.94,149.26537771]
[1755438228312,0.06,192.97,192.96,31.18242122]
[1755438228511,0.06,192.97,192.96,140.86589071]
[1755438228718,0.06,192.97,192.96,115.57589071]
[1755438229093,0.06,192.97,192.96,123.29351471]
[1755438234211,0.68,193.0,192.99,26.0]
[1755438234525,0.68,193.0,192.99,64.59729352]
[1755438235118,0.68,193.0,192.99,69.77890914]
[1755438237219,0.68,193.0,192.99,67.24161562]
[1755438238306,0.68,193.0,192.99,69.77890914]
[1755438238506,0.68,193.0,192.99,67.24161562]
[1755438240032,0.68,193.0,192.99,138.26779159]
[1755438241150,0.68,193.0,192.99,140.80508511]
[1755438241806,0.68,193.0,192.99,133.08617597]
[1755438246723,0.06,193.01,192.99,141.51496443]
[1755438247107,0.74,193.01,192.99,140.80496443]
[1755438248037,0.74,193.01,192.99,133.08617597]
[1755438248206,0.68,193.0,192.99,135.62346949]
[1755438250937,0.06,193.01,192.99,135.62346949]
[1755438251112,0.74,193.01,192.99,135.62346949]
[1755438253544,0.68,193.0,192.99,133.08617597]
[1755438253718,0.68,193.0,192.99,135.62346949]
[1755438254746,0.72,193.01,192.99,135.62346949]
[1755438255644,0.06,193.01,192.99,136.33346949]
[1755438256221,0.66,193.0,192.99,97.02617597]
[1755438256455,0.66,193.0,192.99,133.06617597]
[1755438257257,0.66,193.0,192.99,97.02617597]
[1755438257548,0.66,193.0,192.99,133.06617597]
[1755438257751,0.72,193.01,192.99,133.06617597]
[1755438258151,0.06,193.01,192.99,97.02617597]
[1755438258344,0.66,193.0,192.99,97.02617597]
[1755438258543,0.66,193.0,192.99,133.06617597]
[1755438259154,0.72,193.01,192.99,133.06617597]
[1755438259350,0.72,193.01,193.0,36.04]
[1755438260556,0.06,193.01,193.0,36.04]
[1755438260954,0.06,193.01,193.0,26.0]
[1755438261256,0.06,193.01,193.0,62.04]
[1755438261465,0.72,193.01,193.0,62.04]
[1755438262162,0.06,193.01,193.0,62.04]
[1755438264040,0.72,193.01,193.0,62.04]
[1755438266260,0.06,193.01,193.0,62.04]
[1755438266763,0.06,193.01,193.0,133.06617597]
[1755438267138,0.72,193.01,193.0,133.06617597]
[1755438269047,0.06,193.01,193.0,133.06617597]
[1755438270166,0.06,193.01,193.0,133.77617597]
[1755438270371,0.06,193.01,193.0,133.06617597]
[1755438271271,0.72,193.01,193.0,133.06617597]
[1755438271482,4.60447137,193.01,193.0,97.02617597]
[1755438271773,8.10047782,193.01,193.0,97.02617597]
[1755438271952,3.55600645,193.01,193.0,100.27346949]
[1755438272157,3.94434648,193.01,193.0,100.27346949]
[1755438272742,3.94434648,193.01,193.0,97.73617597]
[1755438273144,0.06,193.01,193.0,97.73617597]
[1755438273361,3.94454008,193.01,193.0,97.73617597]
[1755438273758,3.94454008,193.01,193.0,102.91752312]
[1755438274044,3.94454008,193.01,193.0,105.45481664]
[1755438276054,0.06,193.01,193.0,105.45481664]
[1755438284756,0.06,193.01,193.0,141.49481664]
[1755438285081,0.06,193.01,193.0,138.95752312]
[1755438285264,0.06,193.01,193.0,141.49481664]
[1755438285755,0.06,193.01,193.0,105.45481664]
[1755438286077,0.06,193.01,193.0,141.47481664]
[1755438286778,0.06,193.01,193.0,105.45481664]
[1755438287072,0.06,193.01,193.0,141.47481664]
[1755438290280,0.06,193.01,193.0,70.44864067]
[1755438291776,0.06,193.01,193.0,72.52381367]
[1755438296171,0.06,193.03,193.01,70.96617597]
[1755438296375,0.06,193.03,193.02,43.73810379]
[1755438297693,0.06,193.03,193.02,44.42810379]
[1755438300003,4.41847823,193.1,193.05,26.0]
[1755438300175,3.87506637,193.09,193.08,26.0]
[1755438300374,3.87495428,193.09,193.08,26.0]
[1755438301902,4.58495428,193.09,193.08,26.0]
[1755438304682,7.1222478,193.09,193.06,76.26567922]
[1755438304878,2.53729352,193.07,193.06,106.98617597]
[1755438305081,7.1222478,193.07,193.06,70.96617597]
[1755438305476,7.12231542,193.07,193.06,70.96617597]
[1755438305901,4.5850219,193.07,193.06,70.96617597]
[1755438308607,4.58597557,193.07,193.06,70.96617597]
[1755438310200,3.87597557,193.07,193.06,70.96617597]
[1755438313205,9.05544672,193.07,193.05,5.05762962]
[1755438313385,3.87597557,193.06,193.05,36.02]
[1755438313581,7.36634995,193.06,193.04,70.96617597]
[1755438313909,6.41326909,193.05,193.04,70.96617597]
[1755438314291,9.90364507,193.05,193.04,70.96617597]
[1755438315106,7.36635155,193.05,193.04,70.96617597]
[1755438315309,9.90364507,193.05,193.04,70.96617597]
[1755438315992,12.54635673,193.05,193.04,70.96617597]
[1755438316919,12.54635673,193.05,193.02,112.10622621]
[1755438317108,3.87597557,193.04,193.02,112.75622621]
[1755438317308,3.87597557,193.03,193.02,112.75622621]
[1755438317793,5.18000518,193.05,193.02,112.75622621]
[1755438317993,3.8803826,193.04,193.02,112.75622621]
[1755438318213,3.8803826,193.03,193.02,112.75622621]
[1755438318413,3.88033477,193.03,193.02,112.75622621]
[1755438320702,3.88033477,193.03,193.02,115.29351973]
[1755438320890,5.17968392,193.07,193.02,115.29351973]
[1755438321091,7.37451424,193.06,193.03,0.65]
[1755438321310,7.37451424,193.05,193.04,36.02]
[1755438322004,7.37451424,193.05,193.03,36.67]
[1755438322211,3.88130463,193.04,193.03,36.02]
[1755438322780,3.88130463,193.04,193.03,106.98617597]
[1755438322985,3.88130463,193.04,193.03,107.63617597]
[1755438326901,5.17978678,193.06,193.03,107.63617597]
[1755438327222,7.37453725,193.05,193.04,0.65]
[1755438327409,3.49326938,193.05,193.03,106.98617597]
[1755438327719,3.88130182,193.04,193.03,107.63617597]
[1755438327920,6.74859534,193.04,193.03,70.96617597]
[1755438328121,10.24187554,193.04,193.03,70.96617597]
[1755438328907,9.91187554,193.04,193.03,70.96617597]
[1755438329500,15.09214905,193.04,193.03,70.96617597]
[1755438329993,15.09180325,193.04,193.03,70.96617597]
[1755438331235,12.55450973,193.04,193.03,70.96617597]
[1755438331596,7.37423622,193.04,193.03,70.96617597]
[1755438331918,7.37423622,193.04,193.03,71.61617597]
[1755438332295,3.88095602,193.04,193.03,71.61617597]
[1755438333026,3.88095602,193.04,193.03,107.61617597]
[1755438333532,3.88095602,193.04,193.03,110.15346949]
[1755438335731,3.88095602,193.04,193.03,115.33401137]
[1755438336024,3.88095602,193.04,193.03,107.61617597]
[1755438336233,0.06,193.07,193.03,107.61617597]
[1755438336234,3.49168793,193.06,193.05,26.0]
[1755438336434,7.37141033,193.06,193.05,62.65]
[1755438337632,7.37141033,193.06,193.05,133.61617597]
[1755438338249,7.37141033,193.06,193.05,136.15346949]
[1755438338416,0.06,193.07,193.05,141.33347467]
[1755438338618,0.06,193.07,193.06,3.18729352]
[1755438339020,0.06,193.07,193.06,0.65]
[1755438339235,0.06,193.11,193.07,15.10621557]
[1755438339421,0.06,193.11,193.1,28.53729352]
[1755438339617,0.06,193.11,193.1,64.63729352]
[1755438339812,3.93731668,193.11,193.1,70.46595742]
[1755438340015,0.06,193.11,193.1,73.72325142]
[1755438340221,0.06,193.11,193.1,71.1859579]
[1755438340530,0.06,193.11,193.1,73.72325142]
[1755438340732,0.06,193.11,193.1,159.79564296]
[1755438341930,0.06,193.11,193.1,144.68942739]
[1755438342312,0.06,193.11,193.1,146.09449847]
[1755438343030,0.06,193.13,193.11,15.10621557]
[1755438343235,4.36009262,193.25,193.16,26.0]
[1755438343236,3.86869649,193.21,193.16,26.0]
[1755438343442,0.72,193.26,193.2,29.9423646]
[1755438343611,3.86497947,193.25,193.23,3.9423646]
[1755438343812,3.86497947,193.24,193.23,3.9423646]
[1755438344135,3.86497947,193.25,193.23,3.9423646]
[1755438344332,0.72,193.28,193.24,4.5923646]
[1755438344530,3.8601415,193.27,193.25,3.9423646]
[1755438345332,0.65,193.3,193.26,4.6623646]
[1755438345634,0.65,193.3,193.27,3.9423646]
[1755438346220,4.50523623,193.3,193.27,3.9423646]
[1755438347058,3.85523623,193.3,193.28,26.0]
[1755438347215,0.65,193.37,193.29,4.6623646]
[1755438347408,5.17093362,193.39,193.34,3.9423646]
[1755438347409,0.65,193.38,193.34,3.9423646]
[1755438347614,5.17089818,193.39,193.34,40.2823646]
[1755438347854,0.65,193.37,193.35,3.9423646]
[1755438348319,0.65,193.42,193.36,41.0023646]
[1755438348515,0.65,193.42,193.37,0.72]
[1755438348835,0.65,193.41,193.37,36.34]
[1755438349029,4.5923646,193.41,193.37,36.34]
[1755438349228,9.76299541,193.4,193.35,35.1132626]
[1755438349434,4.5923646,193.39,193.35,31.170898]
[1755438349624,0.65,193.38,193.35,26.0]
[1755438349827,0.65,193.37,193.35,26.0]
[1755438350365,4.47490884,193.39,193.35,26.0]
[1755438350722,0.65,193.38,193.35,26.0]
[1755438351419,5.82120288,193.38,193.35,26.0]
[1755438352645,0.65,193.38,193.35,26.0]
[1755438353347,5.17092957,193.39,193.35,26.72]
[1755438353748,5.82092957,193.39,193.35,26.72]
[1755438353920,9.76329417,193.39,193.35,26.72]
[1755438356424,3.80590945,193.38,193.35,26.72]
[1755438358143,3.80590945,193.38,193.36,0.72]
[1755438358448,9.11329417,193.39,193.36,0.72]
[1755438358649,0.65,193.37,193.35,26.0]
[1755438358850,3.9423646,193.38,193.35,26.0]
[1755438359045,3.9423646,193.38,193.35,26.72]
[1755438359223,0.06,193.39,193.35,26.0]
[1755438359423,0.06,193.39,193.36,0.72]
[1755438359933,3.86024659,193.39,193.36,0.72]
[1755438360236,4.5923646,193.38,193.35,96.96617597]
[1755438360429,0.65,193.38,193.35,96.96617597]
[1755438360631,9.76376069,193.38,193.35,96.96617597]
[1755438361348,5.17139609,193.38,193.35,96.96617597]
[1755438361524,3.9423646,193.38,193.35,97.68617597]
[1755438361726,9.17332378,193.39,193.35,97.68617597]
[1755438361928,3.79879651,193.38,193.35,96.96617597]
[1755438362128,9.17332378,193.39,193.36,0.72]
[1755438362329,3.7977408,193.38,193.36,0.72]
[1755438362643,9.17332378,193.39,193.36,0.72]
[1755438362830,9.82332378,193.39,193.35,96.96617597]
[1755438363040,3.79777829,193.38,193.35,97.68617597]
[1755438363555,9.61902166,193.38,193.35,96.96617597]
[1755438363759,5.82124337,193.38,193.35,96.96617597]
[1755438364049,5.82124337,193.38,193.35,97.68617597]
[1755438364238,3.79653285,193.37,193.35,26.72]
[1755438364439,9.17332331,193.39,193.35,26.72]
[1755438364646,3.79658558,193.38,193.35,26.72]
[1755438365249,3.79658558,193.37,193.35,26.72]
[1755438365447,9.17332331,193.39,193.35,26.72]
[1755438365649,3.79633129,193.38,193.35,26.72]
[1755438365953,3.79633129,193.37,193.35,26.0]
[1755438366158,9.17332331,193.39,193.35,26.0]
[1755438366358,4.5923646,193.36,193.29,0.72]
[1755438366561,3.9423646,193.32,193.29,0.72]
[1755438366747,3.79617436,193.31,193.3,1.09490438]
[1755438367053,3.79617436,193.31,193.3,0.37490438]
[1755438367363,7.73853896,193.31,193.3,0.37490438]
[1755438367535,3.79617436,193.31,193.3,0.37490438]
[1755438367735,3.79617436,193.31,193.3,1.09490438]
[1755438368048,3.9423646,193.32,193.3,1.09490438]
[1755438369657,5.17250948,193.33,193.3,1.09490438]
[1755438369967,0.65,193.37,193.31,0.72]
[1755438370151,3.9423646,193.35,193.31,0.72]
[1755438370339,3.79930233,193.34,193.31,0.72]
[1755438370539,3.79930233,193.33,193.31,0.72]
[1755438370752,3.79930233,193.32,193.3,71.34108035]
[1755438371067,9.11440318,193.35,193.32,0.72]
[1755438371362,3.80080686,193.34,193.32,0.72]
[1755438371537,3.80154885,193.33,193.32,0.72]
[1755438372157,3.80155031,193.33,193.32,0.72]
[1755438372343,3.80296534,193.33,193.32,0.72]
[1755438372955,8.39532994,193.33,193.3,71.34108035]
[1755438373142,7.74532994,193.32,193.3,71.34108035]
[1755438373467,3.80296534,193.31,193.3,71.34108035]
[1755438374044,8.97600346,193.31,193.3,71.34108035]
[1755438376052,8.97600346,193.31,193.3,0.37490438]
[1755438380569,3.80296534,193.31,193.3,1.08490438]
[1755438380746,5.17282724,193.32,193.3,1.08490438]
[1755438380945,3.82731445,193.31,193.3,1.08490438]
[1755438382052,3.82731445,193.31,193.3,72.05108035]
[1755438383269,13.60271717,193.31,193.3,0.37490438]
[1755438383476,13.60271717,193.31,193.25,0.71]
[1755438383656,3.9423646,193.28,193.25,0.71]
[1755438383973,3.82731445,193.27,193.25,0.71]
[1755438384160,3.82731445,193.26,193.25,0.71]
[1755438384560,3.82731445,193.26,193.24,107.24617597]
[1755438384759,3.82731445,193.25,193.24,112.42103994]
[1755438385159,3.82731445,193.25,193.24,111.18854057]
[1755438385380,3.82731445,193.25,193.24,107.95617597]
[1755438385681,3.82731445,193.25,193.24,71.67617597]
[1755438386357,3.82731445,193.25,193.24,70.96617597]
[1755438388380,3.82731445,193.25,193.24,71.67617597]
[1755438390086,3.86277259,193.25,193.24,71.67617597]
[1755438395572,8.6486096,193.32,193.24,117.07345259]
[1755438395877,3.86185345,193.31,193.28,3.9423646]
[1755438396091,3.86185345,193.3,193.29,0.71]
[1755438398266,7.41801701,193.32,193.29,0.71]
[1755438398460,3.86230844,193.31,193.29,0.71]
[1755438398854,3.9423646,193.32,193.29,0.71]
[1755438399056,3.86230667,193.31,193.29,0.71]
[1755438399368,3.9423646,193.3,193.25,97.67617597]
[1755438399682,3.9423646,193.27,193.25,96.96617597]
[1755438399852,3.9423646,193.27,193.25,26.0]
[1755438400484,3.9423646,193.28,193.25,26.0]
[1755438400661,4.6023646,193.28,193.25,26.0]
[1755438401661,9.77621198,193.28,193.25,26.0]
[1755438402578,9.77621198,193.28,193.24,70.96617597]
[1755438402783,4.6023646,193.27,193.24,70.96617597]
[1755438403490,4.6023646,193.27,193.24,71.67617597]
[1755438403698,3.9423646,193.27,193.24,71.67617597]
[1755438404125,9.11621198,193.28,193.24,71.67617597]
[1755438404413,9.77621198,193.28,193.24,71.67617597]
[1755438405717,5.83384738,193.28,193.24,71.67617597]
[1755438405891,9.11621198,193.28,193.25,0.71]
[1755438406410,5.17384738,193.28,193.25,0.71]
[1755438406592,3.47627359,193.31,193.26,0.71]
[1755438406781,0.74,193.33,193.28,3.9423646]
[1755438407112,3.86515555,193.32,193.29,0.71]
[1755438407290,3.86515555,193.31,193.28,74.90854057]
[1755438407608,12.65117558,193.33,193.3,0.71]
[1755438407908,3.47627359,193.32,193.3,0.71]
[1755438408214,3.86619492,193.31,193.3,0.71]
[1755438411415,7.34246851,193.31,193.3,0.71]
[1755438411588,3.86619492,193.31,193.3,0.71]
[1755438411783,7.34246851,193.31,193.3,0.71]
[1755438412099,3.86619492,193.31,193.3,0.71]
[1755438412302,7.34246851,193.31,193.3,0.71]
[1755438412497,3.86619492,193.31,193.3,0.71]
[1755438412694,7.34246851,193.31,193.3,0.71]
[1755438412894,3.86619492,193.31,193.3,0.71]
[1755438413095,7.34246851,193.31,193.3,0.71]
[1755438413318,3.86619492,193.31,193.3,0.71]
[1755438413536,7.34246851,193.31,193.3,0.71]
[1755438413688,3.86619492,193.31,193.28,76.14000017]
[1755438413892,3.86619492,193.3,193.29,0.71]
[1755438414519,3.86619492,193.3,193.28,70.96617597]
[1755438414718,3.9423646,193.31,193.28,70.96617597]
[1755438414910,3.87178909,193.3,193.28,71.67617597]
[1755438415090,7.41863819,193.31,193.28,71.67617597]
[1755438415290,3.87224268,193.3,193.28,71.67617597]
[1755438415491,7.41863819,193.31,193.28,71.67617597]
[1755438415785,3.87224357,193.3,193.28,71.67617597]
[1755438415984,7.41863819,193.31,193.28,71.67617597]
[1755438416199,3.87224357,193.3,193.28,71.67617597]
[1755438416409,3.47627359,193.31,193.28,71.67617597]
[1755438416597,3.87272354,193.3,193.28,71.67617597]
[1755438416798,7.41863819,193.31,193.28,71.67617597]
[1755438417218,3.87272265,193.3,193.28,71.67617597]
[1755438417519,3.9423646,193.31,193.28,71.67617597]
[1755438417719,3.87323287,193.3,193.28,71.67617597]
[1755438418017,5.85277614,193.32,193.28,71.67617597]
[1755438418230,11.30150175,193.31,193.28,71.67617597]
[1755438418405,7.35913715,193.3,193.28,71.67617597]
[1755438418720,7.35913715,193.3,193.28,70.96617597]
[1755438418721,4.55323376,193.29,193.28,70.96617597]
[1755438418919,3.87323376,193.29,193.28,70.96617597]
[1755438420604,8.49559836,193.29,193.28,70.96617597]
[1755438420900,17.15560927,193.29,193.24,0.03]
[1755438421110,3.9423646,193.25,193.24,0.03]
[1755438423293,9.79700884,193.25,193.24,0.03]
[1755438423593,13.67131095,193.25,193.24,0.03]
[1755438423896,53.35819322,193.25,193.24,0.03]
[1755438424527,7.36118438,193.25,193.24,4.6823646]
[1755438424717,3.48587472,193.29,193.25,5.17464424]
[1755438424918,3.87292248,193.28,193.26,4.6523646]
[1755438425123,3.48564639,193.3,193.27,4.6523646]
[1755438425326,3.87299487,193.29,193.28,26.71]
[1755438425622,3.48571879,193.32,193.28,26.71]
[1755438425837,7.35856339,193.31,193.29,0.71]
[1755438426000,7.35856339,193.3,193.29,0.71]
[1755438426202,3.8728446,193.3,193.29,0.71]
[1755438426727,7.35856339,193.3,193.29,0.71]
[1755438427026,3.8728446,193.3,193.29,0.71]
[1755438427330,7.35880371,193.3,193.29,0.71]
[1755438428126,7.41880371,193.3,193.29,0.71]
[1755438428903,7.41880371,193.3,193.28,29.9423646]
[1755438429129,3.8728446,193.29,193.28,30.6523646]
[1755438429326,3.8728446,193.29,193.28,26.71]
[1755438429828,11.98146562,193.29,193.24,0.03]
[1755438430127,3.9423646,193.26,193.24,0.03]
[1755438430327,3.8728446,193.25,193.24,0.03]
[1755438430632,3.48647978,193.26,193.24,0.03]
[1755438431916,3.48647978,193.26,193.24,0.74]
[1755438432331,8.66064222,193.27,193.24,0.74]
[1755438432534,7.35992122,193.26,193.24,0.74]
[1755438432729,3.48647978,193.26,193.24,0.03]
[1755438433847,9.79652704,193.27,193.24,0.03]
[1755438434037,0.68,193.25,193.24,0.03]
[1755438434260,8.10845253,193.25,193.24,0.03]
[1755438435839,17.15697321,193.25,193.24,0.03]
[1755438436833,13.28309677,193.25,193.24,0.03]
[1755438437018,17.15598575,193.25,193.24,0.03]
[1755438437416,13.21357612,193.25,193.24,0.03]
[1755438437614,11.98129648,193.25,193.24,0.03]
[1755438437816,3.87284395,193.25,193.24,4.6323646]
[1755438438034,8.35981348,193.3,193.24,4.6323646]
[1755438438035,8.65717036,193.29,193.24,4.6323646]
[1755438438248,8.65717036,193.29,193.25,0.66]
[1755438438249,7.35487672,193.28,193.25,0.66]
[1755438438537,3.9423646,193.26,193.24,0.03]
[1755438438710,11.29724132,193.25,193.24,0.03]
[1755438438915,8.52365819,193.25,193.24,0.03]
[1755438439119,17.18188556,193.25,193.24,0.03]
[1755438439329,53.52188556,193.25,193.24,0.03]
[1755438441257,53.52068576,193.25,193.24,0.03]
[1755438443050,53.51880301,193.25,193.24,0.03]
[1755438446258,53.5163071,193.25,193.24,0.03]
[1755438446438,52.8063071,193.25,193.24,0.03]
[1755438446623,12.5239425,193.25,193.24,0.03]
[1755438446822,45.36155917,193.25,193.24,0.69]
[1755438447045,48.8439425,193.25,193.24,0.69]
[1755438447434,52.7863071,193.25,193.24,0.69]
[1755438447755,52.7863071,193.25,193.24,0.03]
[1755438448326,48.8439425,193.25,193.24,0.03]
[1755438448527,52.7863071,193.25,193.24,0.03]
[1755438450851,7.34929826,193.25,193.24,0.69]
[1755438451044,3.86691493,193.25,193.24,0.69]
[1755438451641,5.17391332,193.28,193.24,0.69]
[1755438451840,40.16431125,193.27,193.24,0.69]
[1755438452047,36.3,193.27,193.25,0.66]
[1755438453884,36.3,193.27,193.24,0.03]
[1755438454182,3.9423646,193.25,193.24,0.03]
[1755438454479,44.08733112,193.25,193.24,0.03]
[1755438454681,52.74083895,193.25,193.24,0.03]
[1755438455277,52.74126409,193.25,193.24,0.03]
[1755438455674,48.87587243,193.25,193.24,0.03]
[1755438455868,52.74129679,193.25,193.24,0.03]
[1755438459378,48.79893219,193.25,193.24,0.03]
[1755438459587,52.74129679,193.25,193.24,0.03]
[1755438461890,16.46129679,193.25,193.24,80.73]
[1755438462073,43.60428795,193.25,193.24,81.39]
[1755438462385,7.34428795,193.25,193.24,81.39]
[1755438462693,3.86542436,193.25,193.24,85.3323646]
[1755438462896,39.73886359,193.27,193.24,85.3323646]
[1755438463089,7.34717797,193.26,193.24,85.3323646]
[1755438463273,3.47886359,193.26,193.25,0.66]
[1755438463466,7.34800719,193.27,193.25,0.66]
[1755438463669,3.8691436,193.26,193.24,84.6723646]
[1755438464190,0.06,193.3,193.25,4.6023646]
[1755438464390,0.06,193.3,193.29,3.9423646]
[1755438464591,0.06,193.3,193.29,29.9423646]
[1755438464896,0.06,193.3,193.29,30.6223646]
[1755438465268,0.06,193.3,193.29,66.9623646]
[1755438466275,0.06,193.3,193.29,72.13593798]
[1755438466696,0.06,193.3,193.29,72.65329531]
[1755438466996,0.06,193.3,193.29,74.72535131]
[1755438467382,0.06,193.3,193.29,155.42535131]
[1755438467705,0.06,193.3,193.29,154.90799398]
[1755438470094,0.06,193.32,193.3,80.64]
[1755438470305,0.06,193.32,193.31,45.45540272]
[1755438470476,0.06,193.32,193.31,46.13540272]
[1755438472700,0.06,193.32,193.31,46.65270653]
[1755438473008,0.06,193.32,193.31,48.72444053]
[1755438473691,0.06,193.32,193.31,182.42444053]
[1755438473912,0.06,193.32,193.31,181.90713672]
[1755438474397,1e-08,193.32,193.31,200.95571689]
[1755438475182,4.11954333,193.42,193.34,80.51999999]
[1755438475388,4.11954333,193.42,193.35,40.2823646]
[1755438475594,0.65,193.4,193.35,40.9623646]
[1755438476194,0.65,193.4,193.35,46.13433253]
[1755438476507,4.11954333,193.42,193.35,46.13433253]
[1755438476683,9.11237177,193.43,193.35,13.26387653]
[1755438476883,0.65,193.41,193.35,49.60387653]
[1755438477394,0.65,193.43,193.35,279.44728888]
[1755438477601,0.65,193.43,193.35,278.93009209]
[1755438481311,0.65,193.42,193.35,274.98772749]
[1755438481508,0.65,193.41,193.35,278.93009209]
[1755438481694,5.81961197,193.44,193.35,278.93009209]
[1755438481882,0.65,193.44,193.35,278.93009209]
[1755438482089,0.65,193.43,193.35,278.93009209]
[1755438482713,0.65,193.43,193.38,106.45999999]
[1755438483011,0.65,193.43,193.41,3.9423646]
[1755438483211,0.65,193.43,193.41,40.2423646]
[1755438483513,0.65,193.43,193.41,36.3]
[1755438483694,0.65,193.46,193.42,3.9423646]
[1755438483913,3.83955229,193.48,193.45,3.9423646]
[1755438484300,9.00804515,193.48,193.44,3.9423646]
[1755438484611,8.43031244,193.47,193.43,80.45999999]
[1755438484811,0.65,193.46,193.43,80.45999999]
[1755438485296,4.5923646,193.46,193.43,80.45999999]
[1755438485716,4.5923646,193.45,193.43,80.45999999]
[1755438485915,0.65,193.44,193.43,80.45999999]
[1755438486617,9.76192622,193.44,193.43,80.45999999]
[1755438486820,0.65,193.44,193.43,80.45999999]
[1755438486986,4.10336569,193.47,193.43,84.40236459]
[1755438487186,4.48643428,193.46,193.44,3.9423646]
[1755438487490,0.65,193.46,193.44,3.9423646]
[1755438487707,5.81855475,193.48,193.44,3.9423646]
[1755438487892,3.83554938,193.47,193.44,3.9423646]
[1755438488096,4.48554938,193.47,193.44,3.9423646]
[1755438488302,0.65,193.46,193.44,3.9423646]
[1755438490488,3.83554938,193.47,193.45,40.9423646]
[1755438490706,5.0,193.5,193.46,4.6223646]
[1755438490909,5.0,193.5,193.49,3.9423646]
[1755438491113,5.0,193.5,193.48,3.9423646]
[1755438491428,5.0,193.5,193.49,3.9423646]
[1755438492904,5.0,193.5,193.49,4.6223646]
[1755438493296,5.0,193.5,193.49,66.9423646]
[1755438493609,5.0,193.5,193.49,72.11059034]
[1755438493809,5.0,193.5,193.49,66.2623646]
[1755438495116,5.0,193.5,193.49,72.13059034]
[1755438495413,5.0,193.5,193.49,68.18822574]
[1755438495623,5.0,193.5,193.49,62.32]
[1755438495916,5.0,193.5,193.49,66.2623646]
[1755438496713,5.0,193.5,193.49,66.9623646]
[1755438497612,5.0,193.5,193.49,147.42236459]
[1755438498528,5.0,193.5,193.49,143.47999999]
[1755438498816,5.0,193.5,193.49,146.72236459]
[1755438499491,5.0,193.5,193.49,147.42236459]
[1755438500420,5.67,193.5,193.49,80.45999999]
[1755438500600,14.66367402,193.5,193.49,80.45999999]
[1755438502711,8.82571537,193.5,193.49,80.45999999]
[1755438503026,10.83795865,193.5,193.49,80.45999999]
[1755438503388,14.66559325,193.5,193.49,80.45999999]
[1755438504312,13.99559325,193.5,193.49,80.45999999]
[1755438506231,14.66559325,193.5,193.49,80.45999999]
[1755438509120,18.62113814,193.5,193.45,80.45999999]
[1755438509312,3.9423646,193.47,193.45,80.45999999]
[1755438509518,4.6123646,193.46,193.42,81.15999999]
[1755438509715,3.84261466,193.45,193.43,36.28]
[1755438510030,0.67,193.46,193.43,36.28]
[1755438510326,3.84261731,193.45,193.43,36.28]
[1755438510638,0.67,193.46,193.42,117.43999999]
[1755438510803,3.84397127,193.45,193.42,117.43999999]
[1755438511131,5.83919058,193.46,193.42,117.43999999]
[1755438511451,3.84397215,193.45,193.42,120.68236459]
[1755438511603,5.16884571,193.47,193.43,0.7]
[1755438511802,3.84541544,193.46,193.44,0.7]